bitfinex/quotes_ETHUSD_20240823
["timestamp","ask_amount","ask_price","bid_price","bid_amount"]
[1724402873666,2.2965,2680.8,2680.3,7.46168]
[1724402876721,2.365,2681.1,2680.6,24.24576105]
[1724402877037,2.365,2681.5,2681.0,4.82648102]
[1724402877194,0.39032207,2681.4,2681.0,1.09662102]
[1724402877394,2.2926,2681.3,2680.4,3.0]
[1724402877697,2.2926,2681.1,2680.7,3.73033]
[1724402878096,2.2926,2681.1,2680.7,3.73027]
[1724402879270,2.2926,2681.1,2680.5,4.82720102]
[1724402879474,6.02254,2681.1,2680.6,3.0]
[1724402880052,2.2926,2681.1,2680.6,3.0]
[1724402880266,2.2926,2681.1,2680.7,3.73027]
[1724402882044,2.2926,2681.1,2680.8,3.7302]
[1724402882556,2.2926,2681.1,2680.8,23.14893003]
[1724402884044,6.02248,2681.1,2680.8,19.41873003]
[1724402884253,7.11910102,2681.1,2680.8,19.41873003]
[1724402884450,7.83101112,2681.1,2680.8,19.41873003]
[1724402885572,6.7343901,2681.1,2680.8,19.41873003]
[1724402886946,10.4642901,2681.1,2680.8,19.41873003]
[1724402887127,10.4643201,2681.1,2680.8,19.41873003]
[1724402887465,6.7343901,2681.1,2680.8,19.41873003]
[1724402887663,2.366,2681.0,2680.8,19.41873003]
[1724402887882,7.19271102,2680.9,2680.8,19.41873003]
[1724402888070,10.92280102,2680.9,2680.8,19.41873003]
[1724402888428,3.73024,2680.8,2680.5,19.41873003]
[1724402890372,3.73024,2680.8,2680.2,4.82759102]
[1724402890546,2.363,2680.7,2680.2,7.46196]
[1724402890741,2.363,2680.7,2680.3,3.73089]
[1724402891720,2.363,2680.7,2680.3,5.59689]
[1724402893531,2.363,2680.7,2680.3,1.866]
[1724402893532,3.73057,2680.6,2680.3,1.866]
[1724402893734,2.3725,2680.5,2680.3,1.866]
[1724402899227,3.73078,2680.4,2680.3,1.866]
[1724402899841,7.19977102,2680.5,2680.3,1.866]
[1724402900717,6.10315,2680.5,2680.3,1.866]
[1724402903045,2.3725,2680.5,2680.3,1.866]
[1724402904320,6.10324,2680.5,2680.3,1.866]
[1724402904839,2.3725,2680.5,2680.3,1.866]
[1724402905719,6.10321,2680.5,2680.3,1.866]
[1724402906048,11.04988102,2680.4,2680.3,1.866]
[1724402906342,7.31910102,2680.4,2680.3,1.866]
[1724402914491,6.22248,2680.4,2680.3,1.866]
[1724402916717,3.73078,2680.4,2680.3,1.866]
[1724402918080,9.9234,2680.5,2680.3,1.866]
[1724402918281,6.19267,2680.5,2680.3,1.866]
[1724402919206,3.73078,2680.4,2680.3,1.866]
[1724402919510,3.73078,2680.4,2680.3,1.7448]
[1724402919870,3.73078,2680.4,2680.3,1.7088]
[1724402920933,2.462,2680.5,2680.3,1.7088]
[1724402921073,7.4609,2680.7,2680.3,1.7088]
[1724402921402,0.58527617,2680.4,2680.2,2.3131]
[1724402921606,3.73043,2680.7,2680.2,2.3131]
[1724402921812,0.58526418,2680.4,2680.2,2.3131]
[1724402922176,0.58526418,2680.4,2680.0,23.15007003]
[1724402922381,0.58526418,2680.4,2680.0,25.47267003]
[1724402924421,6.60946418,2680.4,2680.0,19.41873003]
[1724402924734,7.7060852,2680.4,2680.0,19.41873003]
[1724402925834,7.7060852,2680.4,2680.0,21.12873003]
[1724402926827,6.60946418,2680.4,2680.0,21.12873003]
[1724402927006,6.60946418,2680.4,2680.1,19.41873003]
[1724402928589,10.34033418,2680.4,2680.1,19.41873003]
[1724402928797,10.34037418,2680.4,2680.1,19.41873003]
[1724402929104,6.60946418,2680.4,2680.1,19.41873003]
[1724402930124,6.0242,2680.4,2680.1,19.41873003]
[1724402930329,4.47516412,2680.4,2680.1,19.41873003]
[1724402930631,3.39002102,2680.4,2680.1,19.41873003]
[1724402931351,4.82768102,2680.2,2680.1,19.41873003]
[1724402932391,7.20958102,2680.2,2680.1,19.41873003]
[1724402932894,7.20958102,2680.2,2680.0,1.71]
[1724402933603,6.11296,2680.2,2680.0,1.71]
[1724402937648,2.3819,2680.2,2680.0,1.71]
[1724402941942,7.4624,2680.1,2680.0,1.71]
[1724402942458,9.7341,2680.1,2680.0,1.71]
[1724402944046,9.8798,2680.1,2680.0,1.70864288]
[1724402945945,6.1486,2680.1,2680.0,1.70864288]
[1724402947815,6.1486,2680.1,2679.5,9.88437]
[1724402948151,6.1486,2680.1,2679.6,3.80651733]
[1724402949731,9.87988,2680.1,2679.5,6.15243]
[1724402949950,6.1486,2680.1,2679.5,6.15243]
[1724402950715,6.1486,2680.1,2679.5,9.88439]
[1724402951019,6.1486,2680.1,2679.5,29.30312003]
[1724402951218,6.1486,2680.1,2679.5,25.57116003]
[1724402951633,9.8799,2680.1,2679.5,25.57116003]
[1724402951926,9.8799,2680.1,2679.5,27.27916003]
[1724402952132,6.1486,2680.1,2679.6,3.7318]
[1724402952556,6.1486,2680.1,2679.6,3.80642757]
[1724402953118,9.87988,2680.1,2679.6,3.80642757]
[1724402953364,9.87988,2680.1,2679.5,27.27916003]
[1724402953858,6.1486,2680.1,2679.5,31.01112003]
[1724402954033,9.8799,2680.1,2679.5,27.27916003]
[1724402954860,6.1486,2680.1,2679.5,31.01113003]
[1724402955159,9.8799,2680.1,2679.5,31.01113003]
[1724402955457,3.73134,2680.0,2679.5,27.27916003]
[1724402956567,6.1486,2680.1,2679.5,31.01106003]
[1724402956732,6.1486,2680.1,2679.6,23.15057003]
[1724402957087,9.8799,2680.1,2679.6,23.15057003]
[1724402957233,6.1486,2680.1,2679.6,23.15057003]
[1724402957595,9.8799,2680.1,2679.6,23.15057003]
[1724402957771,6.1486,2680.1,2679.6,23.15057003]
[1724402959177,3.7312,2680.1,2679.6,23.15057003]
[1724402959565,7.46248,2680.1,2679.6,23.15057003]
[1724402959985,3.7312,2680.1,2679.6,23.15057003]
[1724402960516,7.4625,2680.1,2679.6,23.15057003]
[1724402960700,4.82769102,2680.2,2679.6,23.15054003]
[1724402960925,3.73107,2680.2,2679.7,3.80636719]
[1724402961202,4.82706102,2680.7,2679.8,3.61694545]
[1724402961403,7.13226102,2680.7,2680.2,3.73104]
[1724402962288,8.60620838,2680.7,2680.2,3.73104]
[1724402962754,12.33668838,2680.7,2680.2,3.73104]
[1724402963988,8.60620838,2680.7,2680.2,3.73104]
[1724402964196,4.97364359,2680.8,2680.3,3.73083]
[1724402965119,7.4609,2680.7,2680.2,19.41873003]
[1724402965261,3.73043,2680.7,2680.2,19.41873003]
[1724402965453,7.31494102,2680.6,2680.2,19.41873003]
[1724402965654,4.82747102,2680.4,2680.2,19.41873003]
[1724402966509,2.4549,2680.3,2680.2,19.41873003]
[1724402966710,6.18582,2680.3,2680.2,19.41873003]
[1724402968727,6.18582,2680.3,2679.8,23.15026003]
[1724402969677,6.18582,2680.3,2679.8,26.88177003]
[1724402969879,2.4549,2680.3,2680.0,3.73127]
[1724402970193,7.22546102,2680.5,2680.0,3.73127]
[1724402970576,3.73038,2680.7,2679.8,22.90325105]
[1724402970577,3.73051,2680.6,2680.1,6.11903]
[1724402970790,3.73051,2680.6,2680.1,6.11901]
[1724402970984,7.46109,2680.6,2680.1,6.11901]
[1724402971411,3.73051,2680.6,2680.1,6.11901]
[1724402972285,7.46112,2680.6,2680.1,6.11901]
[1724402972685,3.73066,2680.5,2680.0,3.73133]
[1724402972902,3.73066,2680.5,2679.9,3.73139]
[1724402972903,6.09429,2680.4,2679.9,3.73139]
[1724402974516,6.09429,2680.4,2679.8,19.41873003]
[1724402974517,3.73094,2680.3,2679.8,19.41873003]
[1724402974831,3.73094,2680.3,2679.9,19.41873003]
[1724402975544,3.73094,2680.3,2679.9,23.15018003]
[1724402976093,6.09428,2680.4,2679.9,23.15018003]
[1724402976288,6.09428,2680.4,2679.9,26.88163003]
[1724402976595,6.1134,2680.6,2680.1,3.73116]
[1724402977205,9.844,2680.6,2680.1,3.73116]
[1724402977403,9.84401,2680.6,2680.1,3.73116]
[1724402977645,6.1134,2680.6,2680.1,3.73116]
[1724402977851,9.84403,2680.6,2680.1,3.73116]
[1724402978700,3.73066,2680.5,2680.1,3.73116]
[1724402979638,3.73066,2680.5,2680.0,4.82795102]
[1724402979849,6.11331,2680.6,2680.1,3.73118]
[1724402980500,3.73066,2680.5,2680.1,23.14991003]
[1724402981596,6.11331,2680.6,2680.1,23.14991003]
[1724402982145,3.73038,2680.7,2680.2,3.80560349]
[1724402982352,2.82030779,2680.8,2680.3,3.73089]
[1724402982552,6.55054779,2680.8,2680.3,3.73085]
[1724402982755,3.73038,2680.7,2680.3,3.73085]
[1724402982896,2.82030779,2680.8,2680.3,3.73085]
[1724402983605,6.55062779,2680.8,2680.3,3.73085]
[1724402983822,3.73038,2680.7,2680.3,3.73085]
[1724402984021,3.91692881,2680.8,2680.3,3.73085]
[1724402984245,7.64727881,2680.8,2680.3,3.73085]
[1724402985147,7.64727881,2680.8,2680.3,3.73084]
[1724402986340,4.86811988,2680.7,2680.3,3.73084]
[1724402987603,4.86811988,2680.7,2680.2,19.41873003]
[1724402987604,3.37732102,2680.6,2680.2,19.41873003]
[1724402987849,4.82754102,2680.4,2680.2,19.41873003]
[1724402988548,3.73092,2680.3,2680.2,19.41873003]
[1724402988701,5.1879111,2680.3,2680.2,19.41873003]
[1724402990229,1.4569911,2680.3,2680.2,19.41873003]
[1724402990429,4.82749102,2680.4,2680.2,19.41873003]
[1724402991958,8.55837102,2680.4,2680.2,19.41873003]
[1724402992334,4.82749102,2680.4,2680.2,19.41873003]
[1724402992531,4.82749102,2680.4,2679.8,23.15034003]
[1724402992744,5.91136812,2680.4,2679.8,23.15034003]
[1724402993775,5.91136812,2680.4,2679.9,3.73139]
[1724402993934,5.91136812,2680.4,2679.9,7.46277]
[1724402994465,5.91136812,2680.4,2679.9,3.73138]
[1724402995551,5.91136812,2680.4,2679.9,7.46278]
[1724402995762,5.91136812,2680.4,2679.9,3.73138]
[1724402996147,5.91136812,2680.4,2679.9,7.46278]
[1724402996775,5.91136812,2680.4,2679.9,3.73138]
[1724402996972,5.91136812,2680.4,2679.9,7.46278]
[1724402998057,5.91136812,2680.4,2679.9,3.73138]
[1724402998257,0.81920681,2680.3,2679.9,3.73138]
[1724402999158,0.81920681,2680.3,2679.9,7.46279]
[1724402999387,0.81920681,2680.3,2679.9,3.73138]
[1724402999585,0.81920681,2680.3,2679.9,7.46279]
[1724403000305,0.81920681,2680.3,2679.9,7.46277]
[1724403001979,0.81920681,2680.3,2679.9,7.46278]
[1724403002464,0.81920681,2680.3,2679.9,3.73138]
[1724403002867,2.2901,2680.2,2679.9,7.46278]
[1724403003580,2.2901,2680.2,2679.9,3.73138]
[1724403004616,4.20686783,2680.2,2679.8,3.73161]
[1724403005681,4.20686783,2680.2,2679.9,3.73146]
[1724403007178,3.11024681,2680.2,2679.9,3.73146]
[1724403009890,3.11024681,2680.2,2679.2,23.15117003]
[1724403009891,2.4072,2679.7,2679.2,23.15117003]
[1724403010090,1.09662102,2679.6,2679.2,3.73244]
[1724403010321,7.23572102,2679.6,2679.2,19.41873003]
[1724403010590,10.96762102,2679.6,2679.2,19.41873003]
[1724403014135,7.23572102,2679.6,2679.2,19.41873003]
[1724403014429,8.33247312,2679.6,2679.2,19.41873003]
[1724403015030,2.4072,2679.6,2679.2,19.41873003]
[1724403015231,3.50382102,2679.6,2679.2,19.41873003]
[1724403015621,7.23572102,2679.6,2679.2,19.41873003]
[1724403016208,7.23572102,2679.6,2679.1,19.41873003]
[1724403020165,10.96762102,2679.6,2679.1,19.41873003]
[1724403020909,14.69952102,2679.6,2679.1,19.41873003]
[1724403021092,16.16947312,2679.6,2679.1,19.41873003]
[1724403022336,16.16947312,2679.6,2678.7,19.41873003]
[1724403022639,16.16947312,2679.6,2678.7,23.15185003]
[1724403023350,16.16947312,2679.6,2678.8,3.73297]
[1724403023351,12.43757312,2679.6,2678.8,3.73297]
[1724403023691,12.43757312,2679.6,2678.8,6.00857]
[1724403027833,12.43757312,2679.6,2678.8,9.74151]
[1724403028162,12.43757312,2679.6,2678.9,3.73286]
[1724403030068,8.70567312,2679.6,2679.0,3.73265]
[1724403030386,8.70567312,2679.6,2679.0,7.46526]
[1724403030665,8.70567312,2679.6,2679.0,3.73261]
[1724403032067,8.70567312,2679.6,2679.5,1.78632493]
[1724403032469,12.43757312,2679.6,2679.5,1.78632493]
[1724403032659,10.96762102,2679.6,2679.5,1.78632493]
[1724403034565,14.69952102,2679.6,2679.5,1.78632493]
[1724403034785,21.98142102,2679.6,2679.5,1.78632493]
[1724403034953,21.98142102,2679.6,2679.5,1.708]
[1724403035161,24.21861727,2679.6,2679.5,1.708]
[1724403037683,24.80422664,2679.6,2679.5,1.708]
[1724403047580,3.73339,2678.6,2678.4,1.78665873]
[1724403047768,3.73338,2678.6,2678.4,1.78665873]
[1724403048097,3.73338,2678.6,2678.5,0.06241407]
[1724403050523,3.73343,2678.5,2678.2,2.3601]
[1724403050819,8.56306102,2678.7,2678.3,0.06253824]
[1724403050994,3.73317,2678.7,2678.3,0.06253824]
[1724403051191,3.73317,2678.7,2678.4,2.3601]
[1724403051396,3.73317,2678.7,2678.4,2.42257615]
[1724403051735,5.3408,2679.3,2678.6,2.3322]
[1724403051736,3.73267,2679.1,2678.6,2.3322]
[1724403052082,3.73267,2679.1,2678.7,2.3322]
[1724403052326,3.73267,2679.1,2678.7,2.39448991]
[1724403052801,3.7328,2679.0,2678.7,2.39448991]
[1724403053819,3.73288,2678.9,2678.7,2.39448991]
[1724403054405,7.46583,2678.9,2678.7,2.39448991]
[1724403054776,7.46583,2678.9,2678.7,0.06228991]
[1724403054982,3.73329,2678.6,2678.5,21.85263003]
[1724403055233,3.73329,2678.6,2678.5,21.9150441]
[1724403056018,7.46616,2678.8,2678.5,21.9150441]
[1724403056402,3.73322,2678.7,2678.5,21.9150441]
[1724403057380,3.73301,2678.8,2678.5,21.9150441]
[1724403057994,3.73301,2678.8,2678.5,2.49631407]
[1724403060606,7.4661,2678.8,2678.5,2.49631407]
[1724403060806,3.73301,2678.8,2678.5,2.49631407]
[1724403062283,2.84533477,2679.2,2678.5,2.49631407]
[1724403062284,3.73261,2679.1,2678.6,3.73321]
[1724403062615,3.73261,2679.1,2678.7,0.06231604]
[1724403064353,3.73276,2679.0,2678.7,0.06231604]
[1724403064766,3.73276,2679.0,2678.5,6.16733]
[1724403065065,3.73276,2679.0,2678.6,0.06237812]
[1724403065419,4.82938102,2679.0,2678.6,0.06237812]
[1724403065625,8.56221102,2679.0,2678.6,0.06237812]
[1724403065931,3.73297,2678.9,2678.6,0.06237812]
[1724403066131,4.82963102,2678.8,2678.6,0.06237812]
[1724403066337,4.82963102,2678.8,2678.1,26.77873003]
[1724403066338,3.73315,2678.7,2678.3,2.4663]
[1724403066560,3.73315,2678.7,2678.4,0.06236321]
[1724403067460,4.82963102,2678.8,2678.4,0.06236321]
[1724403067928,3.73301,2678.8,2678.4,3.79591321]
[1724403070660,3.73301,2678.8,2678.4,0.06236321]
[1724403071030,3.73326,2678.7,2678.4,0.06236321]
[1724403073160,3.73301,2678.8,2678.4,0.06236321]
[1724403074439,3.7329,2678.9,2678.4,3.79591321]
[1724403074656,3.7329,2678.9,2678.5,2.3683]
[1724403074970,3.7329,2678.9,2678.5,6.10172]
[1724403075138,3.7329,2678.9,2678.6,0.06223904]
[1724403075974,7.46533,2679.1,2678.6,0.06223904]
[1724403076278,3.7328,2679.0,2678.6,0.06223904]
[1724403076955,3.73288,2678.9,2678.6,0.06223904]
[1724403077159,7.46583,2678.9,2678.6,0.06223904]
[1724403077354,3.73288,2678.9,2678.6,0.06223904]
[1724403078993,7.46541,2679.1,2678.6,0.06223904]
[1724403079166,3.73277,2679.0,2678.7,2.4096]
[1724403079480,3.73277,2679.0,2678.8,0.06044823]
[1724403079660,7.46541,2679.1,2678.7,2.4096]
[1724403079856,7.46541,2679.1,2678.9,0.06038617]
[1724403080057,7.46541,2679.1,2678.8,0.05878157]
[1724403080258,3.73268,2679.1,2679.0,0.05865744]
[1724403080457,3.73281,2679.0,2678.7,2.4096]
[1724403084394,3.73288,2678.9,2678.7,2.4096]
[1724403085361,3.73288,2678.9,2678.4,2.3339]
[1724403086059,3.73303,2678.8,2678.4,2.3339]
[1724403086459,6.21538,2678.9,2678.4,2.3339]
[1724403086698,3.73302,2678.8,2678.4,2.3339]
[1724403086895,3.73302,2678.8,2678.5,0.05731679]
[1724403088386,3.73274,2679.0,2678.5,0.05731679]
[1724403088586,7.46555,2679.0,2678.5,3.79074679]
[1724403088807,3.73274,2679.0,2678.5,3.79074679]
[1724403090300,7.46556,2679.0,2678.5,3.79074679]
[1724403090484,3.73274,2679.0,2678.5,3.79074679]
[1724403090690,3.73287,2678.9,2678.5,3.79074679]
[1724403090883,3.73287,2678.9,2678.5,0.05731679]
[1724403094112,3.73287,2678.9,2678.5,3.79072679]
[1724403094271,3.73261,2679.1,2678.6,2.4729]
[1724403094477,3.73261,2679.1,2678.6,2.53015471]
[1724403095016,3.73261,2679.1,2678.6,6.26341471]
[1724403095811,3.73261,2679.1,2678.6,2.53015471]
[1724403096030,3.73274,2679.0,2678.6,2.53015471]
[1724403096608,7.46555,2679.0,2678.6,2.53015471]
[1724403096778,3.73274,2679.0,2678.6,2.53015471]
[1724403096980,3.73295,2678.9,2678.6,2.53015471]
[1724403097540,3.73295,2678.9,2678.6,0.05725471]
[1724403097884,3.73295,2678.9,2678.4,2.2667]
[1724403098218,3.73322,2678.7,2678.4,2.2667]
[1724403098378,7.46647,2678.7,2678.4,2.2667]
[1724403098603,7.46646,2678.7,2678.4,2.2667]
[1724403098936,3.73322,2678.7,2678.4,2.2667]
[1724403101852,3.73322,2678.7,2678.5,0.05556248]
[1724403102144,3.73297,2678.9,2678.5,0.05556248]
[1724403102354,7.46594,2678.9,2678.5,0.05556248]
[1724403102559,3.73302,2678.8,2678.5,0.05556248]
[1724403103941,3.73297,2678.9,2678.5,0.05556248]
[1724403104862,7.46595,2678.9,2678.5,0.05556248]
[1724403105834,7.46596,2678.9,2678.5,0.05556248]
[1724403106172,3.73302,2678.8,2678.5,0.05556248]
[1724403106565,7.46597,2678.9,2678.5,0.05556248]
[1724403106919,3.73301,2678.8,2678.5,0.05556248]
[1724403112873,3.73301,2678.8,2678.3,3.7337]
[1724403113090,3.73301,2678.8,2678.6,0.05550563]
[1724403113402,3.73289,2678.9,2678.4,6.21365]
[1724403113701,3.73304,2678.8,2678.4,2.4801]
[1724403113886,7.46615,2678.8,2678.5,0.05556771]
[1724403114093,3.73304,2678.8,2678.5,0.05556771]
[1724403114389,3.73304,2678.8,2678.3,3.73363]
[1724403114551,7.46614,2678.8,2678.6,0.05550563]
[1724403114740,0.92901341,2678.7,2678.6,0.05550563]
[1724403114941,0.92901341,2678.7,2678.3,3.73363]
[1724403115268,3.73304,2678.8,2678.3,3.73363]
[1724403115470,3.73304,2678.8,2678.4,0.0556298]
[1724403115639,3.73315,2678.7,2678.4,0.0556298]
[1724403118453,3.73302,2678.8,2678.4,0.0556298]
[1724403118775,4.90644241,2678.8,2678.4,0.0556298]
[1724403131489,4.12333359,2679.1,2678.5,2.3286]
[1724403131691,4.12322359,2679.1,2678.6,3.73322]
[1724403131887,3.73259,2679.1,2678.6,3.78874653]
[1724403133610,4.82921102,2679.1,2678.6,3.78874653]
[1724403133779,3.73276,2679.0,2678.6,0.05552653]
[1724403135961,6.00639,2679.3,2678.7,3.73315]
[1724403136166,3.73239,2679.3,2678.8,2.42435241]
[1724403136376,3.73239,2679.3,2678.8,2.47970253]
[1724403136583,3.73239,2679.3,2678.9,2.4353]
[1724403136983,3.73239,2679.3,2679.0,0.05523122]
[1724403137222,3.73213,2679.5,2679.1,2.3867]
[1724403137523,3.73184,2679.7,2679.2,0.12975272]
[1724403137684,7.46371,2679.7,2679.2,0.12975272]
[1724403137888,3.73184,2679.7,2679.2,0.12975272]
[1724403138094,3.7316,2679.9,2679.3,7.33808981]
[1724403138412,7.46315,2679.9,2679.4,2.4346]
[1724403138776,7.46313,2679.9,2679.5,0.05487916]
[1724403139176,3.73156,2679.9,2679.5,0.05487916]
[1724403139631,7.46316,2679.9,2679.5,0.05487916]
[1724403139942,3.73163,2679.8,2679.5,0.05487916]
[1724403140500,3.73156,2679.9,2679.5,0.05487916]
[1724403140944,3.7317,2679.8,2679.5,0.05487916]
[1724403141429,1.09662102,2680.0,2679.5,0.05487916]
[1724403141430,3.73176,2679.7,2679.5,0.05487916]
[1724403141593,7.46362,2679.7,2679.5,0.05487916]
[1724403141941,3.7319,2679.6,2679.5,0.05487916]
[1724403142234,3.73176,2679.7,2679.5,0.05487916]
[1724403142412,3.7319,2679.6,2679.5,0.05487916]
[1724403142745,3.7319,2679.6,2679.2,2.2839]
[1724403142889,3.7319,2679.6,2679.5,0.05487916]
[1724403143094,3.7319,2679.6,2679.2,2.2839]
[1724403143329,3.73176,2679.7,2679.5,0.05487916]
[1724403143536,3.73176,2679.7,2679.2,2.2839]
[1724403143693,3.73176,2679.7,2679.6,0.05481713]
[1724403144045,7.46312,2679.9,2679.4,2.2748]
[1724403144337,3.73156,2679.9,2679.5,0.12951242]
[1724403144625,3.7317,2679.8,2679.5,0.05487916]
[1724403147927,7.46315,2679.9,2679.5,0.05487916]
[1724403149584,3.73156,2679.9,2679.5,0.05487916]
[1724403150537,4.31697536,2679.9,2679.5,0.05487916]
[1724403151022,8.04852536,2679.9,2679.5,0.05487916]
[1724403151802,4.31696536,2679.9,2679.5,0.05487916]
[1724403153037,8.04854536,2679.9,2679.5,0.05487916]
[1724403154719,8.04853536,2679.9,2679.5,0.05487916]
[1724403158982,4.31696536,2679.9,2679.5,0.05487916]
[1724403159563,8.04854536,2679.9,2679.5,0.05487916]
[1724403161947,8.04857536,2679.9,2679.5,0.05487916]
[1724403162584,3.73162,2679.8,2679.5,0.05487916]
[1724403165098,0.58541638,2679.8,2679.5,0.05487916]
[1724403165284,0.58541638,2679.8,2679.5,3.78690916]
[1724403165796,0.58541638,2679.8,2679.5,0.05487916]
[1724403174888,4.31704638,2679.8,2679.5,0.05487916]
[1724403175224,2.3932,2679.7,2679.5,0.05487916]
[1724403175425,3.48982102,2679.7,2679.5,0.05487916]
[1724403175726,3.48982102,2679.7,2679.6,0.05282378]
[1724403176222,3.48982102,2679.7,2679.3,23.15104003]
[1724403176422,1.09662102,2679.7,2679.6,0.05282378]
[1724403176593,1.09662102,2679.7,2679.3,23.15104003]
[1724403176799,1.09662102,2679.7,2679.6,0.05282378]
[1724403176989,1.09662102,2679.7,2679.3,23.15104003]
[1724403177179,1.09662102,2679.7,2679.6,0.05282378]
[1724403177383,1.09662102,2679.7,2679.3,23.15104003]
[1724403177586,1.09662102,2679.7,2679.6,0.05282378]
[1724403177781,1.09662102,2679.7,2679.3,23.15104003]
[1724403178026,1.09662102,2679.7,2679.6,0.05282378]
[1724403178193,1.09662102,2679.7,2679.3,23.15104003]
[1724403178400,1.09662102,2679.7,2679.6,0.05282378]
[1724403178605,1.09662102,2679.7,2679.3,23.15104003]
[1724403178784,1.09662102,2679.7,2679.6,0.05282378]
[1724403178989,1.09662102,2679.7,2679.3,23.15104003]
[1724403179193,1.09662102,2679.7,2679.6,0.05282378]
[1724403179393,1.09662102,2679.7,2679.3,23.15104003]
[1724403179629,4.31704638,2679.8,2679.6,0.05282378]
[1724403179924,6.44895704,2679.8,2679.7,0.05276175]
[1724403180139,5.4136674,2679.8,2679.7,0.05276175]
[1724403180302,5.4136674,2679.8,2679.4,19.41873003]
[1724403180484,5.4136674,2679.8,2679.7,0.05267295]
[1724403180715,5.4136674,2679.8,2679.4,19.41873003]
[1724403180898,5.4136674,2679.8,2679.7,0.05267295]
[1724403181101,3.73188,2679.7,2679.4,19.41873003]
[1724403181441,2.82698914,2679.8,2679.4,19.41873003]
[1724403181442,3.73203,2679.5,2679.4,19.41873003]
[1724403181729,3.73203,2679.5,2678.8,2.4448]
[1724403181730,3.73266,2679.1,2678.7,19.41873003]
[1724403181896,3.73266,2679.1,2678.5,3.73333]
[1724403181897,3.73266,2679.1,2678.5,6.17813]
[1724403182098,3.73266,2679.1,2678.6,3.73318]
[1724403182486,3.73266,2679.1,2678.7,3.73314]
[1724403182792,3.37872102,2679.2,2678.7,3.73314]
[1724403182793,7.11118102,2679.2,2678.7,3.73314]
[1724403185094,7.11118102,2679.2,2678.7,7.46621]
[1724403186630,3.73261,2679.1,2678.6,3.73325]
[1724403186818,7.25677102,2679.0,2678.4,3.73344]
[1724403187914,7.25677102,2679.0,2678.5,3.73336]
[1724403188251,8.42680593,2679.0,2678.5,3.73336]
[1724403188393,8.42680593,2679.0,2678.2,7.46751]
[1724403188394,4.82970102,2678.8,2678.2,7.46751]
[1724403188731,2.3451,2678.7,2678.2,3.73375]
[1724403188899,2.3451,2678.7,2678.2,7.46752]
[1724403189306,2.3451,2678.7,2678.2,3.73375]
[1724403189508,2.3451,2678.7,2678.2,7.46752]
[1724403190125,2.3451,2678.7,2678.2,7.46751]
[1724403190433,2.3451,2678.7,2678.2,3.73375]
[1724403191933,2.3451,2678.7,2678.3,0.04974287]
[1724403192129,2.3451,2678.7,2678.2,3.73375]
[1724403192296,6.07825,2678.7,2678.4,0.04968078]
[1724403192497,6.07825,2678.7,2678.2,3.73375]
[1724403192696,6.07825,2678.7,2678.3,0.04974287]
[1724403192950,6.07825,2678.7,2678.2,3.73375]
[1724403193104,6.07825,2678.7,2678.4,0.04968078]
[1724403193306,6.68752547,2678.7,2678.3,0.04974287]
[1724403193618,6.68752547,2678.7,2678.2,7.46753]
[1724403193796,6.07825,2678.7,2678.4,0.04968078]
[1724403193996,2.3451,2678.7,2678.3,0.0502027]
[1724403194199,6.07828,2678.7,2678.2,3.73375]
[1724403194393,6.07828,2678.7,2678.4,0.05014061]
[1724403194596,6.07828,2678.7,2678.3,0.0502027]
[1724403194597,7.1690781,2678.7,2678.3,0.0502027]
[1724403194943,7.1690781,2678.7,2678.4,0.05014061]
[1724403195300,7.1690781,2678.7,2678.2,3.73375]
[1724403195506,7.1690781,2678.7,2678.3,0.0502027]
[1724403195707,7.1690781,2678.7,2678.2,3.73375]
[1724403195906,7.1690781,2678.7,2678.3,0.0502027]
[1724403196135,7.1690781,2678.7,2678.2,3.73375]
[1724403196322,7.1690781,2678.7,2678.4,0.05014061]
[1724403196494,7.1690781,2678.7,2678.3,0.0502027]
[1724403196699,7.1690781,2678.7,2678.2,3.73375]
[1724403196937,6.02988893,2678.6,2678.3,0.0502027]
[1724403197097,4.83019102,2678.4,2678.3,0.0502027]
[1724403197301,4.83019102,2678.4,2677.9,6.06785]
[1724403197504,4.83019102,2678.4,2678.0,0.05086451]
[1724403198511,8.56386102,2678.4,2678.0,0.05086451]
[1724403198709,9.54023491,2678.4,2677.8,7.46864]
[1724403198910,9.54021491,2678.4,2677.9,0.04959328]
[1724403200241,3.73372,2678.3,2677.9,0.04959328]
[1724403210785,4.83019102,2678.4,2677.9,3.78383328]
[1724403212213,3.73357,2678.4,2677.9,3.78383328]
[1724403222101,7.46727,2678.4,2677.9,3.78383328]
[1724403222328,3.73372,2678.3,2677.9,0.04959328]
[1724403223995,3.73388,2678.2,2677.9,0.04959328]
[1724403224419,3.73426,2677.9,2677.7,19.41873003]
[1724403225223,3.73415,2678.0,2677.7,19.41873003]
[1724403228744,7.46835,2678.0,2677.7,19.41873003]
[1724403229743,3.73429,2677.9,2677.7,19.41873003]
[1724403229914,3.73415,2678.0,2677.7,19.41873003]
[1724403229915,3.73416,2678.0,2677.7,19.41873003]
[1724403230495,3.73416,2678.0,2677.5,3.73476]
[1724403230900,3.73427,2677.9,2677.4,3.73487]
[1724403232773,3.73442,2677.8,2677.4,3.73487]
[1724403235835,4.83104102,2677.8,2677.3,30.51376003]
[1724403236402,4.83104102,2677.8,2677.3,3.73503]
[1724403237046,4.83104102,2677.8,2677.4,0.04408813]
[1724403237700,4.83104102,2677.8,2677.4,3.77903813]
[1724403239844,2.3848,2677.7,2677.4,3.77903813]
[1724403240053,2.3848,2677.7,2677.5,0.07923223]
[1724403240419,2.3848,2677.7,2677.6,0.04396387]
[1724403241122,2.3848,2677.7,2677.4,3.73495]
[1724403241437,2.3848,2677.7,2677.5,0.12325823]
[1724403257178,2.3848,2677.7,2677.5,3.85805823]
[1724403259004,2.437,2678.0,2677.5,1.21987925]
[1724403259341,2.437,2678.0,2677.7,3.73453]
[1724403259569,2.437,2678.0,2677.8,0.13889563]
[1724403263332,6.1712,2678.0,2677.8,0.13889563]
[1724403263475,7.31044057,2678.0,2677.8,0.13889563]
[1724403265812,3.73426,2677.9,2677.8,0.13889563]
[1724403266345,3.73426,2677.9,2677.8,0.04381873]
[1724403266799,3.73426,2677.9,2677.5,3.73481]
[1724403266993,3.73426,2677.9,2677.8,0.04377177]